bitfinex-derivatives/quotes_ETHF0:USTF0_20250322
["timestamp","ask_amount","ask_price","bid_price","bid_amount"]
[1742678883423,2.6321,1993.0,1992.9,1.00374]
[1742678883621,0.00751654,1993.1,1993.0,1.00369]
[1742678883928,1.00337,1993.7,1993.4,2.50865]
[1742678883929,3.2078,1993.7,1993.4,2.50865]
[1742678884124,3.2078,1994.0,1993.9,1.00323]
[1742678884316,6.3918,1994.0,1993.9,1.00323]
[1742678884720,3.184,1994.0,1993.9,1.00323]
[1742678885613,3.184,1994.0,1993.5,2.5086]
[1742678885923,4.21107,1993.9,1993.7,1.00329]
[1742678886113,4.21107,1993.9,1993.4,2.50862]
[1742678886114,3.184,1993.8,1993.4,2.50862]
[1742678886310,3.184,1993.8,1993.7,1.00334]
[1742678887116,3.8859,1993.8,1993.7,1.00334]
[1742678888824,4.88919,1993.8,1993.7,1.00334]
[1742678889025,6.20309,1993.8,1993.7,1.00334]
[1742678889224,6.85709,1993.8,1993.7,1.00334]
[1742678890729,6.85709,1993.8,1993.6,1.00335]
[1742678890926,1.3505,1993.7,1993.6,1.00335]
[1742678891723,1.3505,1993.7,1993.6,2.34915]
[1742678903230,4.5379,1993.8,1993.6,1.3458]
[1742678903435,5.8119,1993.8,1993.7,2.32674]
[1742678907341,6.81519,1993.8,1993.7,2.32674]
[1742678910533,5.8119,1993.8,1993.7,2.32674]
[1742678912141,6.81519,1993.8,1993.7,2.32674]
[1742678912546,5.8119,1993.8,1993.7,2.32674]
[1742678915436,6.64098611,1993.8,1993.7,2.32674]
[1742678915948,8.56635867,1993.8,1993.7,2.32674]
[1742678921055,7.56306867,1993.8,1993.7,2.32674]
[1742678923558,6.73398256,1993.8,1993.7,2.32674]
[1742678923756,5.8119,1993.8,1993.7,2.32674]
[1742678924159,6.81519,1993.8,1993.7,2.32674]
[1742678927458,5.8119,1993.8,1993.7,2.32674]
[1742678927652,6.73431025,1993.8,1993.7,2.32674]
[1742678928260,5.8119,1993.8,1993.7,2.32674]
[1742678928452,3.2078,1993.9,1993.8,1.00329]
[1742678928762,6.3898,1993.9,1993.8,1.00329]
[1742678929063,7.21920546,1993.9,1993.8,1.00329]
[1742678929361,8.56940546,1993.9,1993.8,1.00329]
[1742678929657,9.49188696,1993.9,1993.8,1.00329]
[1742678930168,10.49511696,1993.9,1993.8,1.00329]
[1742678930653,9.49188696,1993.9,1993.8,1.00329]
[1742678932362,10.49511696,1993.9,1993.8,1.00329]
[1742678937457,10.49511696,1993.9,1993.8,1.66689]
[1742678939653,7.28731696,1993.9,1993.8,1.66689]
[1742678942167,4.93388696,1993.9,1993.8,1.66689]
[1742678942368,4.93288696,1993.9,1993.8,2.33259]
[1742678942669,1.75188696,1993.9,1993.8,2.33259]
[1742678944771,3.08758696,1993.9,1993.8,2.33259]
[1742678944964,2.75511696,1993.9,1993.8,1.3293]
[1742678945160,1.00329,1993.8,1993.7,1.3234]
[1742678945463,1.00334,1993.7,1993.6,1.00337]
[1742678945860,2.33908,1993.7,1993.6,1.00339]
[1742678946262,5.54688,1993.7,1993.6,1.00339]
[1742678947971,2.33908,1993.7,1993.6,1.00339]
[1742678948275,5.54688,1993.7,1993.6,1.00339]
[1742678949380,1.00343,1993.6,1993.5,1.0034]
[1742678949579,2.37083,1993.6,1993.5,1.0034]
[1742678951270,5.55183,1993.6,1993.5,1.0034]
[1742678958985,5.55183,1993.6,1993.5,2.3552]
[1742678970100,6.25193,1993.6,1993.5,2.3552]
[1742678983413,6.25193,1993.6,1993.5,1.3518]
[1742678984710,6.25193,1993.6,1993.5,2.35524]
[1742678989317,5.55183,1993.6,1993.5,3.05624]
[1742678994016,5.55183,1993.6,1993.5,2.0528]
[1742678997227,5.55183,1993.6,1993.5,3.05624]
[1742678998419,5.55183,1993.6,1993.5,1.3518]
[1742678998626,6.21893,1993.6,1993.5,1.3518]
[1742678998921,7.04817961,1993.6,1993.5,1.3518]
[1742678999121,7.97051711,1993.6,1993.5,1.3518]
[1742679008626,7.97051711,1993.6,1993.5,2.0304]
[1742679013738,11.17831711,1993.6,1993.5,2.0304]
[1742679017740,10.51121711,1993.6,1993.5,2.0304]
[1742679024343,9.14381711,1993.6,1993.5,2.0304]
[1742679030343,8.3145675,1993.6,1993.5,2.0304]
[1742679031547,7.39223,1993.6,1993.5,2.0304]
[1742679032950,8.31385358,1993.6,1993.5,2.0304]
[1742679033244,8.31385358,1993.6,1993.5,3.03384]
[1742679033450,7.39223,1993.6,1993.5,2.0304]
[1742679036341,7.39223,1993.6,1993.5,3.03384]
[1742679036542,7.39223,1993.6,1993.5,2.0304]
[1742679040755,7.39223,1993.6,1993.5,3.03384]
[1742679041254,7.39223,1993.6,1993.5,2.0304]
[1742679042156,7.39223,1993.6,1993.5,3.03384]
[1742679042955,7.39223,1993.6,1993.5,2.0304]
[1742679043154,7.39223,1993.6,1993.5,3.03384]
[1742679044156,4.18443,1993.6,1993.5,2.0304]
[1742679046160,4.18443,1993.6,1993.5,3.03384]
[1742679049565,4.18443,1993.6,1993.5,2.0304]
[1742679050074,4.18443,1993.6,1993.5,3.03384]
[1742679051766,4.18443,1993.6,1993.5,2.0304]
[1742679052178,4.18443,1993.6,1993.5,3.03384]
[1742679053878,3.181,1993.6,1993.5,3.03384]
[1742679054371,4.481,1993.6,1993.5,3.03384]
[1742679054781,3.181,1993.6,1993.5,3.03384]
[1742679054981,2.25514102,1993.7,1993.6,1.00339]
[1742679055278,4.10174102,1993.7,1993.6,2.26769]
[1742679055479,5.43514102,1993.7,1993.6,2.26769]
[1742679055680,4.5134,1993.7,1993.6,2.26769]
[1742679056271,5.51674,1993.7,1993.6,2.26769]
[1742679058481,2.33674,1993.7,1993.6,2.26769]
[1742679058782,5.51574,1993.7,1993.6,2.26769]
[1742679060283,4.5124,1993.7,1993.6,2.26769]
[1742679060878,5.51574,1993.7,1993.6,2.26769]
[1742679062479,4.5124,1993.7,1993.6,2.26769]
[1742679065779,5.51574,1993.7,1993.6,2.26769]
[1742679071990,4.5124,1993.7,1993.6,2.26769]
[1742679072482,5.51574,1993.7,1993.6,2.26769]
[1742679073892,4.5124,1993.7,1993.6,2.26769]
[1742679077696,5.51574,1993.7,1993.6,2.26769]
[1742679078000,4.5124,1993.7,1993.6,2.26769]
[1742679079196,5.51574,1993.7,1993.6,2.26769]
[1742679082999,3.179,1993.7,1993.6,2.26769]
[1742679085396,0.6964,1994.0,1993.7,1.00334]
[1742679085699,4.03696369,1994.0,1993.9,1.00323]
[1742679085994,8.13818047,1994.0,1993.9,1.00323]
[1742679087599,4.93038047,1994.0,1993.9,1.00323]
[1742679088093,4.10121678,1994.0,1993.9,1.00323]
[1742679090599,0.92221678,1994.0,1993.9,1.00323]
[1742679094104,0.92221678,1994.0,1993.7,8.89408]
[1742679094105,0.00751654,1994.1,1994.0,1.00318]
[1742679098511,0.00751654,1994.1,1994.0,2.27268]
[1742679102912,1.36321654,1994.1,1994.0,2.27268]
[1742679103411,0.00751654,1994.1,1994.0,5.48048]
[1742679104311,0.00751654,1994.1,1994.0,6.85348]
[1742679108014,0.00751654,1994.1,1994.0,3.64568]
[1742679108210,0.00751654,1994.1,1994.0,6.85348]
[1742679111309,0.00751654,1994.1,1994.0,3.64568]
[1742679111618,0.00751654,1994.1,1994.0,6.85348]
[1742679115319,0.00751654,1994.1,1994.0,3.64568]
[1742679115618,0.00751654,1994.1,1994.0,6.85348]
[1742679116113,0.00751654,1994.1,1994.0,3.64568]
[1742679116615,0.00751654,1994.1,1994.0,6.85348]
[1742679117123,0.00751654,1994.1,1994.0,3.64568]
[1742679117725,0.00751654,1994.1,1994.0,6.85348]
[1742679118018,0.6953,1994.3,1994.2,1.00308]
[1742679119424,1.9737,1994.3,1994.2,1.00308]
[1742679119724,1.9737,1994.3,1994.2,1.68848]
[1742679123030,1.2784,1994.3,1994.2,1.68848]
[1742679123933,0.685111,1994.4,1994.3,1.00303]
[1742679124132,2.047811,1994.4,1994.3,2.32453]
[1742679124332,1.367711,1994.4,1994.3,2.32453]
[1742679124533,1.367711,1994.4,1994.3,3.00843]
[1742679126029,0.005011,1994.4,1994.3,3.00843]
[1742679135038,3.176,1995.5,1994.3,7.6814]
[1742679135238,1.3618,1995.1,1995.0,1.00268]
[1742679135441,1.3618,1995.1,1995.0,4.21048]
[1742679135636,2.046,1995.1,1995.0,4.21048]
[1742679135842,0.643,1995.2,1995.1,1.00263]
[1742679136039,0.643,1995.2,1995.1,2.33893]
[1742679136447,2.7048,1995.2,1995.1,2.33893]
[1742679137241,3.70738,1995.2,1995.1,2.33893]
[1742679137842,2.7048,1995.2,1995.1,2.33893]
[1742679139153,3.70738,1995.2,1995.1,2.33893]
[1742679139846,1.00263,1995.1,1995.0,0.00751654]
[1742679140048,1.00273,1994.9,1994.8,3.2078]
[1742679140357,1.00273,1994.9,1994.7,1.3205]
[1742679140358,1.00283,1994.7,1994.6,4.21067]
[1742679141053,2.28573,1994.7,1994.6,4.21067]
[1742679143346,2.92383,1994.7,1994.6,4.21067]
[1742679145053,2.92383,1994.7,1994.6,3.2078]
[1742679145554,2.92383,1994.7,1994.6,4.606]
[1742679146146,2.92383,1994.7,1994.6,5.60888]
[1742679146548,2.92383,1994.7,1994.6,4.606]
[1742679147147,2.92383,1994.7,1994.6,5.60888]
[1742679147656,2.92383,1994.7,1994.6,4.606]
[1742679152560,6.09983,1994.7,1994.6,4.606]
[1742679153161,1.00288,1994.6,1994.5,0.00751654]
[1742679153359,2.33618,1994.6,1994.5,0.00751654]
[1742679153752,6.34059,1994.6,1994.2,3.2078]
[1742679153951,1.00303,1994.3,1994.2,4.5432]
[1742679154155,4.17903,1994.3,1994.2,4.5432]
[1742679154853,4.87333,1994.3,1994.2,4.5432]
[1742679160462,4.87333,1994.3,1994.2,1.3354]
[1742679172371,4.17903,1994.3,1994.2,2.33848]
[1742679176476,4.17903,1994.3,1994.2,5.54628]
[1742679179586,4.17903,1994.3,1994.2,2.33848]
[1742679179775,4.17903,1994.3,1994.2,5.54628]
[1742679180290,4.17903,1994.3,1994.2,2.33848]
[1742679180477,4.17903,1994.3,1994.2,5.54628]
[1742679180778,4.17903,1994.3,1994.2,4.5432]
[1742679180978,3.176,1994.4,1994.3,1.003]
[1742679181282,3.176,1994.4,1994.3,2.9994]
[1742679181481,1.83082504,1994.5,1994.3,1.9964]
[1742679181674,1.00297,1994.5,1994.4,2.96068]
[1742679181983,4.17897,1994.5,1994.4,6.16848]
[1742679182374,4.17893,1994.5,1994.4,6.16848]
[1742679182881,0.65461654,1994.8,1994.6,1.00285]
[1742679183085,4.17883,1994.7,1994.6,1.00285]
[1742679184079,3.176,1994.7,1994.6,1.00285]
[1742679185787,4.17883,1994.7,1994.6,1.00285]
[1742679188587,1.00288,1994.6,1994.5,3.2078]
[1742679188794,1.00298,1994.4,1994.3,4.21079]
[1742679194093,1.00298,1994.4,1994.3,1.00299]
[1742679194284,1.00298,1994.4,1994.3,1.69919]
[1742679194486,1.00298,1994.4,1994.3,4.5565]
[1742679194690,1.00298,1994.4,1994.3,5.55953]
[1742679194990,2.29878,1994.4,1994.3,5.55953]
[1742679202788,2.29878,1994.4,1994.3,3.2078]
[1742679203293,2.29878,1994.4,1994.3,5.58393]
[1742679211803,2.29878,1994.4,1994.3,4.5809]
[1742679212395,2.29878,1994.4,1994.3,5.58393]
[1742679212703,2.29878,1994.4,1994.3,4.5809]
[1742679213804,2.29878,1994.4,1994.3,5.58393]
[1742679214100,2.29878,1994.4,1994.3,4.5809]
[1742679214602,2.29878,1994.4,1994.3,5.58393]
[1742679215106,2.29878,1994.4,1994.3,4.5809]
[1742679216009,2.29878,1994.4,1994.3,5.58393]
[1742679216507,2.29878,1994.4,1994.3,4.5809]
[1742679217318,2.29878,1994.4,1994.3,5.58393]
[1742679218518,2.29878,1994.4,1994.3,4.5809]
[1742679218717,2.29878,1994.4,1994.3,5.58393]
[1742679219020,2.29878,1994.4,1994.3,4.5809]
[1742679219223,2.29878,1994.4,1994.3,1.3731]
[1742679219911,3.22095415,1994.4,1994.3,1.3731]
[1742679221517,2.29878,1994.4,1994.3,1.3731]
[1742679223826,3.22079507,1994.4,1994.3,1.3731]
[1742679224222,2.29878,1994.4,1994.3,1.3731]
[1742679225925,3.2207961,1994.4,1994.3,1.3731]
[1742679226625,2.29878,1994.4,1994.3,1.3731]
[1742679227721,3.12773827,1994.4,1994.3,1.3731]
[1742679228417,3.22076942,1994.4,1994.3,1.3731]
[1742679228620,2.29878,1994.4,1994.3,1.3731]
[1742679229726,2.95148,1994.4,1994.3,1.3731]
[1742679233723,3.87349408,1994.4,1994.3,1.3731]
[1742679242734,4.70262205,1994.4,1994.3,1.3731]
[1742679243136,3.87349408,1994.4,1994.3,1.3731]
[1742679243438,4.70263098,1994.4,1994.3,1.3731]
[1742679259238,5.01535,1994.3,1993.8,3.2078]
[1742679259442,1.00323,1993.9,1993.8,0.6711]
[1742679259645,4.17823,1993.9,1993.8,0.6711]
[1742679260056,1.00334,1993.7,1993.6,3.8621]
[1742679260254,4.17834,1993.7,1993.6,3.8621]
[1742679262558,5.54494,1993.7,1993.6,5.1888]
[1742679265550,5.54494,1993.7,1993.6,1.3267]
[1742679265865,5.54494,1993.7,1993.5,0.00751654]
[1742679265866,1.00339,1993.6,1993.5,0.00751654]
[1742679266059,3.03089,1993.6,1993.5,0.00751654]
[1742679270458,3.03089,1993.6,1993.4,1.3305]
[1742679270459,1.00344,1993.5,1993.4,1.3305]
[1742679270755,5.54794,1993.5,1993.4,1.3305]
[1742679284972,6.23704,1993.5,1993.4,1.3305]
[1742679288378,7.06459005,1993.5,1993.4,1.3305]
[1742679288767,7.98492468,1993.5,1993.4,1.3305]
[1742679289373,6.98148468,1993.5,1993.2,0.6889]
[1742679289566,5.48059,1993.4,1993.3,0.6373]
[1742679290677,2.27279,1993.4,1993.3,0.6373]
[1742679290977,5.48059,1993.4,1993.3,0.6373]
[1742679291876,1.00354,1993.3,1993.2,0.69641654]
[1742679292177,4.17954,1993.3,1993.2,0.69641654]
[1742679292367,5.57414,1993.3,1993.2,0.69641654]
[1742679298080,6.49662887,1993.3,1993.2,0.69641654]
[1742679299380,7.32632649,1993.3,1993.2,0.69641654]
[1742679316592,7.32632649,1993.3,1993.2,0.00751654]
[1742679316783,8.69862649,1993.3,1993.2,0.00751654]
[1742679317589,1.00364,1993.1,1993.0,0.6903]
[1742679317897,1.00374,1992.9,1992.8,0.6627]
[1742679318088,4.17974,1992.9,1992.8,0.6627]
[1742679318289,5.51914,1992.9,1992.8,0.6627]
[1742679318799,6.44162887,1992.9,1992.8,0.6627]
[1742679319497,5.51914,1992.9,1992.8,0.6627]
[1742679320596,1.00379,1992.8,1992.7,0.005011]
[1742679320798,2.36109,1992.8,1992.7,1.271311]
[1742679324691,2.36109,1992.8,1992.7,0.005011]
[1742679326395,2.36109,1992.8,1992.5,3.2078]
[1742679326396,5.39214366,1992.8,1992.3,3.2078]
[1742679326698,5.9113,1992.7,1992.3,5.8565]
[1742679326998,3.91472,1992.6,1992.4,1.2902]
[1742679327184,4.5809,1992.5,1992.4,1.2902]
[1742679327384,5.58484,1992.5,1992.4,1.2902]
[1742679331295,4.5809,1992.5,1992.4,2.29419]
[1742679331497,3.176,1992.5,1992.4,2.29419]
[1742679331900,4.17994,1992.5,1992.4,2.29419]
[1742679337402,4.17994,1992.5,1992.4,5.50199]
[1742679346222,4.17994,1992.5,1992.4,4.498]
[1742679349224,5.53764,1992.5,1992.4,4.498]
[1742679350822,4.5337,1992.5,1992.4,5.50199]
[1742679351323,5.53764,1992.5,1992.4,5.50199]
[1742679354823,5.53764,1992.5,1992.4,4.498]
[1742679359428,6.89404,1992.5,1992.4,4.498]
[1742679359625,6.89404,1992.5,1992.4,1.2902]
[1742679367544,1.00399,1992.4,1992.3,1.3585]
[1742679367842,2.32759,1992.4,1992.3,2.6662]
[1742679368542,2.32759,1992.4,1992.3,3.67024]
[1742679369240,2.32759,1992.4,1992.3,2.6662]
[1742679369727,2.32759,1992.4,1992.3,3.67024]
[1742679374351,2.32759,1992.4,1992.3,2.6662]
[1742679374748,2.32759,1992.4,1992.3,3.67024]
[1742679378450,2.32759,1992.4,1992.3,2.6662]
[1742679379241,2.32759,1992.4,1992.3,3.67024]
[1742679380945,2.32759,1992.4,1992.3,2.6662]
[1742679396559,2.32759,1992.4,1992.3,1.3077]
[1742679396759,1.00404,1992.3,1992.2,4.21189]
[1742679396962,2.28494,1992.3,1992.2,5.54819]
[1742679398557,2.28494,1992.3,1992.2,4.5441]
[1742679398759,2.28494,1992.3,1992.2,3.2078]
[1742679398959,4.4559,1992.3,1992.0,2.34047]
[1742679399156,1.00414,1992.1,1992.0,2.34047]
[1742679399554,2.28504,1992.1,1992.0,2.34047]
[1742679399758,2.28504,1992.1,1992.0,2.98837]
[1742679399952,5.46004,1992.1,1992.0,2.98837]
[1742679400259,5.46004,1992.1,1992.0,1.00417]
[1742679400562,5.46004,1992.1,1992.0,2.39477]
[1742679402163,5.46004,1992.1,1992.0,1.3906]
[1742679402349,1.00419,1992.0,1991.9,3.8557]
[1742679402663,3.04149,1992.0,1991.9,3.2078]
[1742679403565,1.00444,1991.5,1991.4,1.311]
[1742679404060,1.00444,1991.5,1991.4,2.6454]
[1742679404251,2.29884,1991.5,1991.4,3.64989]
[1742679404456,2.29884,1991.5,1991.4,2.6454]
[1742679405765,1.00449,1991.4,1991.3,4.21233]
[1742679405958,1.3663,1991.4,1991.3,4.21233]
[1742679406662,2.37079,1991.4,1991.3,4.21233]
[1742679407760,5.54679,1991.4,1991.3,4.21233]
[1742679408767,5.54679,1991.4,1991.3,3.2078]
[1742679409163,6.19389,1991.4,1991.3,3.2078]
[1742679410169,1.0046,1991.2,1991.1,4.5834]
[1742679410661,4.1806,1991.2,1991.1,3.2078]
[1742679410964,4.8703,1991.2,1991.1,3.2078]
[1742679414263,3.176,1991.2,1991.1,4.21245]
[1742679414662,4.5134,1991.2,1991.1,4.21245]
[1742679414871,5.518,1991.2,1991.1,3.2078]
[1742679415369,5.518,1991.2,1991.1,4.4964]
[1742679419680,5.518,1991.2,1991.1,3.2078]
[1742679424476,1.00465,1991.1,1991.0,5.51568]
[1742679424669,2.33065,1991.1,1991.0,5.51568]
[1742679425480,1.0047,1991.0,1990.9,1.2889]
[1742679425670,1.0047,1991.0,1990.8,4.5137]
[1742679425671,1.00475,1990.9,1990.8,4.5137]
[1742679426168,2.33075,1990.9,1990.8,4.5137]
[1742679427476,2.33075,1990.9,1990.8,1.3059]
[1742679430682,2.33075,1990.9,1990.6,4.5202]
[1742679430683,1.00485,1990.7,1990.6,4.5202]
[1742679430877,4.18185,1990.7,1990.6,5.9255]
[1742679431681,4.18185,1990.7,1990.6,2.7177]
[1742679431875,4.87285,1990.7,1990.6,2.7177]
[1742679433176,1.00495,1990.5,1990.4,3.2078]
[1742679433377,4.18195,1990.5,1990.4,4.5638]
[1742679434982,4.18195,1990.5,1990.4,5.5688]
[1742679435775,4.18195,1990.5,1990.4,4.5638]
[1742679436173,4.18195,1990.5,1990.4,5.8814]
[1742679436878,4.18195,1990.5,1990.4,6.8864]
[1742679438277,4.18195,1990.5,1990.4,5.8814]
[1742679439183,4.18195,1990.5,1990.4,6.8864]
[1742679439382,4.18195,1990.5,1990.4,5.8814]
[1742679441976,4.18195,1990.5,1990.4,6.8864]
[1742679442291,4.18195,1990.5,1990.4,5.8814]
[1742679442891,4.18195,1990.5,1990.4,2.6736]
[1742679443985,1.005,1990.4,1990.3,0.6989]
[1742679444185,2.3063,1990.4,1990.3,2.0354]
[1742679444384,3.6623,1990.4,1990.3,2.0354]
[1742679445192,1.0051,1990.2,1990.1,1.67012]
[1742679445493,1.0051,1990.2,1990.1,1.3247]
[1742679446388,1.0051,1990.2,1990.1,2.6481]
[1742679446389,2.3375,1990.2,1990.1,2.6481]
[1742679450506,2.3375,1990.2,1990.1,3.65325]
[1742679450804,2.3375,1990.2,1990.1,2.6481]
[1742679460015,1.0052,1990.0,1989.9,3.2078]
[1742679460307,1.0052,1990.0,1989.9,5.1804]
[1742679460700,2.4067,1990.0,1989.9,5.1804]
[1742679463317,2.4067,1990.0,1989.9,1.9726]
[1742679463511,1.4015,1990.0,1989.9,6.18565]
[1742679463715,2.4067,1990.0,1989.9,6.18565]
[1742679465914,1.0052,1990.0,1989.9,6.18565]
[1742679466111,2.3367,1990.0,1989.9,6.18565]
[1742679470010,2.3367,1990.0,1989.9,5.1804]
[1742679472015,2.3367,1990.0,1989.9,6.18565]
[1742679475825,3.0326,1990.0,1989.9,6.18565]
[1742679476618,3.0326,1990.0,1989.9,2.97785]
[1742679476825,2.3367,1990.0,1989.9,6.18565]
[1742679480021,2.3367,1990.0,1989.9,5.1804]
[1742679481232,2.9873,1990.0,1989.9,3.2078]
[1742679481429,1.0053,1989.8,1989.7,3.8653]
[1742679481935,1.0053,1989.8,1989.7,4.5228]
[1742679482225,2.362,1989.8,1989.7,5.8891]
[1742679483122,2.362,1989.8,1989.7,3.2078]
[1742679483322,1.0054,1989.6,1989.5,4.21324]
[1742679483929,2.3621,1989.6,1989.5,4.21324]
[1742679484424,2.3621,1989.6,1989.5,3.2078]
[1742679485437,1.00545,1989.5,1989.4,1.3011]
[1742679485622,1.0055,1989.4,1989.3,3.2078]
[1742679486130,2.4089,1989.4,1989.3,4.21335]
[1742679486833,2.4089,1989.4,1989.3,3.2078]
[1742679487526,1.00571,1989.0,1988.9,4.21354]
[1742679487721,4.5814,1989.3,1989.2,1.00561]
[1742679488324,4.5814,1989.3,1989.1,4.21343]
[1742679488632,2.35081,1989.2,1989.1,3.2078]
[1742679490322,5.53281,1989.2,1989.1,3.2078]
[1742679490517,5.53281,1989.2,1988.8,2.51445]
[1742679490518,7.04125,1989.2,1988.8,1.00577]
[1742679490729,1.00578,1988.9,1988.8,1.00577]
[1742679490926,1.00581,1988.8,1988.7,4.21362]
[1742679491129,2.30751,1988.8,1988.7,4.21362]
[1742679491530,2.30751,1988.8,1988.7,3.2078]
[1742679492829,1.00586,1988.7,1988.6,0.6505]
[1742679493030,2.30756,1988.7,1988.6,0.6505]
[1742679493331,2.30756,1988.7,1988.6,1.65637]
[1742679493732,1.3017,1988.7,1988.6,1.65637]
[1742679493921,2.30756,1988.7,1988.6,1.65637]
[1742679494124,1.3017,1988.7,1988.6,1.65637]
[1742679494332,2.30756,1988.7,1988.6,1.65637]
[1742679496235,1.3017,1988.7,1988.6,1.65637]
[1742679496733,2.30756,1988.7,1988.6,1.65637]
[1742679497333,1.3017,1988.7,1988.6,1.65637]
[1742679498933,2.30756,1988.7,1988.6,2.92697]
[1742679499326,1.3017,1988.7,1988.6,2.92697]
[1742679499529,1.00558,1989.3,1988.6,4.4211]
[1742679499734,3.20153561,1989.4,1989.3,1.00555]
[1742679500032,1.00528,1989.9,1989.8,1.00525]
[1742679500235,1.3113,1989.9,1989.6,3.2078]
[1742679500427,1.00535,1989.7,1989.6,4.21317]
[1742679500828,2.31665,1989.7,1989.6,1.00537]
[1742679501027,1.3113,1989.7,1989.6,1.00537]
[1742679501234,0.00753561,1989.8,1989.7,1.00535]
[1742679503333,0.00753561,1989.8,1989.7,2.36065]
[1742679504430,0.00753561,1989.8,1989.7,3.01015]
[1742679504835,1.3418,1990.3,1990.2,1.0051]
[1742679505026,2.34685,1990.3,1990.2,1.0051]
[1742679505438,2.34685,1990.3,1990.2,2.3604]
[1742679505931,1.3418,1990.3,1989.8,4.21307]
[1742679506130,1.00525,1989.9,1989.8,5.56918]
[1742679507134,1.00525,1989.9,1989.8,4.21308]
[1742679507330,1.00525,1989.9,1989.8,2.36138]
[1742679509038,2.37165,1989.9,1989.8,2.36138]
[1742679510937,1.0053,1989.8,1989.7,1.2885]
[1742679511141,1.0054,1989.6,1989.5,0.00753561]
[1742679511338,1.0054,1989.6,1989.5,1.37443561]
[1742679511641,4.2394,1989.6,1989.5,1.37443561]
[1742679511942,4.2394,1989.6,1989.5,0.00753561]
[1742679515645,1.00555,1989.3,1989.2,3.2078]
[1742679515844,4.24155,1989.3,1989.2,3.2078]
[1742679516339,4.24155,1989.3,1989.1,2.34424]
[1742679516340,1.00561,1989.2,1989.1,1.3386]
[1742679516544,1.00566,1989.1,1989.0,4.21347]
[1742679516733,1.00566,1989.1,1989.0,4.22100561]
[1742679517838,1.00566,1989.1,1989.0,5.51050561]
[1742679522746,1.00566,1989.1,1989.0,4.50483561]
[1742679524249,4.23566,1989.1,1989.0,3.21533561]
[1742679524842,4.23566,1989.1,1989.0,0.00753561]
[1742679526456,4.23566,1989.1,1989.0,1.32793561]
[1742679530557,4.23566,1989.1,1989.0,0.00753561]
[1742679530854,7.44346,1989.1,1989.0,0.00753561]
[1742679533455,4.23566,1989.1,1989.0,0.00753561]
[1742679534153,3.23,1989.1,1989.0,1.01324561]
[1742679534343,3.23,1989.1,1989.0,1.71354561]
[1742679534548,5.95153561,1989.3,1989.2,1.00561]
[1742679534845,5.95153561,1989.3,1989.2,4.21341]
[1742679535045,6.95708561,1989.3,1989.2,4.21341]
[1742679535254,8.28188561,1989.3,1989.2,5.57701]
[1742679535554,2.33788561,1989.3,1989.2,5.57701]
[1742679535749,2.33788561,1989.3,1989.2,4.5714]
[1742679537951,2.33788561,1989.3,1989.2,3.2078]
[1742679538257,1.00566,1989.1,1989.0,0.70783561]
[1742679539052,2.27876,1989.1,1989.0,0.70783561]
[1742679541251,2.27876,1989.1,1989.0,0.00753561]
[1742679541452,2.94636,1989.1,1989.0,0.00753561]
[1742679542554,5.44636,1989.1,1989.0,0.00753561]
[1742679542957,7.19695726,1989.1,1989.0,0.00753561]
[1742679543555,1.00586,1988.7,1988.6,3.2078]
[1742679543764,4.24786,1988.7,1988.6,3.2078]
[1742679544364,4.94206,1988.7,1988.6,3.2078]
[1742679546465,3.242,1988.7,1988.6,3.2078]
[1742679546757,54.93708,1989.2,1988.7,1.00586]
[1742679546758,46.479,1989.2,1988.7,1.00586]
[1742679546967,5.58828,1989.1,1989.0,1.00571]
[1742679547255,5.58828,1989.1,1988.9,1.67212]
[1742679547256,1.00571,1989.0,1988.9,1.67212]
[1742679547653,2.34231,1989.0,1988.9,1.67212]
[1742679548854,2.34231,1989.0,1988.9,2.93992]
[1742679551761,2.34231,1989.0,1988.9,1.9342]
[1742679552068,2.34231,1989.0,1988.9,2.93996]
[1742679553164,1.3366,1989.0,1988.9,2.93996]
[1742679554166,2.34231,1989.0,1988.9,2.93996]
[1742679554365,1.3366,1989.0,1988.9,2.93996]
[1742679554567,2.34231,1989.0,1988.9,2.93996]
[1742679555169,1.3366,1989.0,1988.9,2.93996]
[1742679555465,4.24562,1989.2,1989.1,1.00561]
[1742679555663,4.5208,1989.2,1989.1,1.00561]
[1742679555966,5.52641,1989.2,1989.1,1.00561]
[1742679556264,2.28641,1989.2,1989.1,1.00561]
[1742679556457,1.2808,1989.2,1989.1,1.00561]
[1742679556662,1.2808,1989.2,1989.1,2.37071]
[1742679556861,4.25611561,1989.3,1989.2,1.00561]
[1742679557164,5.53691561,1989.3,1989.2,3.02641]
[1742679557361,5.53691561,1989.3,1989.2,2.0208]
[1742679557759,5.53691561,1989.3,1989.2,3.02641]
[1742679558067,5.53688561,1989.3,1989.2,3.02641]
[1742679558565,4.53133561,1989.3,1989.2,3.02641]
[1742679560268,0.00753561,1989.3,1989.2,6.23421]
[1742679561469,3.2078,1990.3,1990.2,1.0051]
[1742679561672,3.242,1990.3,1990.2,1.0051]
[1742679561968,4.24705,1990.3,1990.2,1.0051]
[1742679562466,3.242,1990.3,1990.1,1.65992]
[1742679562673,1.0051,1990.2,1990.1,1.66745561]
[1742679562869,2.3979,1990.2,1990.1,1.66745561]
[1742679564667,2.3979,1990.2,1990.1,2.32625561]
[1742679567269,0.00753561,1990.4,1990.1,4.52893561]
[1742679567473,0.00753561,1990.4,1990.1,0.00753561]
[1742679567474,1.0051,1990.2,1990.1,0.00753561]
[1742679568674,2.2758,1990.2,1990.1,0.00753561]
[1742679569574,5.5308,1990.2,1990.1,0.00753561]